[Event "Early-Titled-Tuesday-Blitz-October-03-2023"]
[Site "Chess.com"]
[Date "2023.10.03"]
[Round "2"]
[White "stepanosinovsky"]
[Black "kushbhagat2009"]
[Result "1-0"]
[WhiteElo "2385"]
[BlackElo "2637"]
[TimeControl "180+1"]
[EndTime "8:18:03 PDT"]
[Termination "stepanosinovsky won by checkmate"]

1. Nf3 {[%clk 0:03:00.9]} 1... Nf6 {[%clk 0:03:00]} 2. g3 {[%clk 0:03:01.8]}
2... g6 {[%clk 0:03:00.9]} 3. Bg2 {[%clk 0:03:00.8]} 3... Bg7 {[%clk 0:03:01.5]}
4. O-O {[%clk 0:03:01.6]} 4... O-O {[%clk 0:03:02.2]} 5. d3 {[%clk 0:03:01.7]}
5... d6 {[%clk 0:03:02.8]} 6. e4 {[%clk 0:03:01.8]} 6... c5 {[%clk 0:03:02]} 7.
Nbd2 {[%clk 0:03:01]} 7... Nc6 {[%clk 0:03:02.6]} 8. Re1 {[%clk 0:02:46.8]} 8...
Rb8 {[%clk 0:03:01.5]} 9. e5 {[%clk 0:02:45.3]} 9... dxe5 {[%clk 0:03:01.5]} 10.
Nxe5 {[%clk 0:02:46.1]} 10... Nxe5 {[%clk 0:02:58.8]} 11. Rxe5 {[%clk 0:02:47]}
11... Qc7 {[%clk 0:02:58.3]} 12. Qe2 {[%clk 0:02:37.2]} 12... Be6 {[%clk
0:02:39.5]} 13. Nf3 {[%clk 0:02:20.9]} 13... Rfe8 {[%clk 0:02:01.2]} 14. Rxe6
{[%clk 0:02:13.6]} 14... fxe6 {[%clk 0:01:57]} 15. Qxe6+ {[%clk 0:02:14.5]}
15... Kh8 {[%clk 0:01:50.9]} 16. Ng5 {[%clk 0:02:09]} 16... h6 {[%clk
0:01:48.3]} 17. Bf4 {[%clk 0:01:59.7]} 17... Qb6 {[%clk 0:01:36]} 18. Bxb8
{[%clk 0:01:41.6]} 18... Rxb8 {[%clk 0:00:53.6]} 19. Qxb6 {[%clk 0:01:38.1]}
19... axb6 {[%clk 0:00:54.5]} 20. Ne6 {[%clk 0:01:37.8]} 20... Nd7 {[%clk
0:00:48.5]} 21. Nxg7 {[%clk 0:01:36.6]} 21... Kxg7 {[%clk 0:00:49.4]} 22. Re1
{[%clk 0:01:35.3]} 22... Kf6 {[%clk 0:00:49.9]} 23. Bh3 {[%clk 0:01:34.1]} 23...
Nf8 {[%clk 0:00:48.7]} 24. f4 {[%clk 0:01:28.9]} 24... Ra8 {[%clk 0:00:44.7]}
25. a3 {[%clk 0:01:28.2]} 25... g5 {[%clk 0:00:39.7]} 26. fxg5+ {[%clk
0:01:27.2]} 26... hxg5 {[%clk 0:00:40.6]} 27. Bg2 {[%clk 0:01:26.9]} 27... Ra7
{[%clk 0:00:35.5]} 28. h4 {[%clk 0:01:25.7]} 28... gxh4 {[%clk 0:00:35.3]} 29.
gxh4 {[%clk 0:01:26.6]} 29... b5 {[%clk 0:00:35.5]} 30. Kf2 {[%clk 0:01:16.9]}
30... b4 {[%clk 0:00:35.3]} 31. axb4 {[%clk 0:01:15.9]} 31... cxb4 {[%clk
0:00:36.2]} 32. Ke3 {[%clk 0:01:13.2]} 32... Ra2 {[%clk 0:00:35.6]} 33. Rb1
{[%clk 0:01:12.6]} 33... b5 {[%clk 0:00:34.4]} 34. Bd5 {[%clk 0:01:06]} 34...
Ra6 {[%clk 0:00:32.1]} 35. Rf1+ {[%clk 0:01:06.1]} 35... Kg7 {[%clk 0:00:32.1]}
36. Rf7+ {[%clk 0:01:06]} 36... Kg8 {[%clk 0:00:29]} 37. Rxe7+ {[%clk
0:01:05.7]} 37... Kh8 {[%clk 0:00:29.2]} 38. Be4 {[%clk 0:01:02.1]} 38... Ra2
{[%clk 0:00:25.8]} 39. Rf7 {[%clk 0:00:54]} 39... Kg8 {[%clk 0:00:15.6]} 40. Bd5
{[%clk 0:00:53.6]} 40... Rxb2 {[%clk 0:00:16.3]} 41. h5 {[%clk 0:00:52.2]} 41...
Nh7 {[%clk 0:00:07.2]} 42. h6 {[%clk 0:00:50.8]} 42... Kh8 {[%clk 0:00:07.8]}
43. Bb3 {[%clk 0:00:46.3]} 43... Ng5 {[%clk 0:00:06.2]} 44. Rg7 {[%clk 0:00:46]}
44... Nh3 {[%clk 0:00:05.4]} 45. Rg3 {[%clk 0:00:45.8]} 45... Nf4 {[%clk
0:00:01.7]} 46. Kxf4 {[%clk 0:00:43.1]} 46... Rxb3 {[%clk 0:00:02.6]} 47. cxb3
{[%clk 0:00:42.3]} 47... Kh7 {[%clk 0:00:03.5]} 48. Ke5 {[%clk 0:00:42]} 48...
Kh8 {[%clk 0:00:04.4]} 49. Kd4 {[%clk 0:00:42.4]} 49... Kh7 {[%clk 0:00:05.3]}
50. Kc5 {[%clk 0:00:43]} 50... Kh8 {[%clk 0:00:06.2]} 51. Kxb4 {[%clk
0:00:43.2]} 51... Kh7 {[%clk 0:00:07.1]} 52. Kxb5 {[%clk 0:00:43.7]} 52... Kh8
{[%clk 0:00:08]} 53. Kc4 {[%clk 0:00:44.1]} 53... Kh7 {[%clk 0:00:08.9]} 54. b4
{[%clk 0:00:44.6]} 54... Kh8 {[%clk 0:00:09.8]} 55. b5 {[%clk 0:00:45.1]} 55...
Kh7 {[%clk 0:00:10.7]} 56. Kc5 {[%clk 0:00:45.1]} 56... Kh8 {[%clk 0:00:11.6]}
57. h7 {[%clk 0:00:42.4]} 57... Kxh7 {[%clk 0:00:12.5]} 58. b6 {[%clk
0:00:42.3]} 58... Kh8 {[%clk 0:00:13.4]} 59. b7 {[%clk 0:00:42.7]} 59... Kh7
{[%clk 0:00:14.3]} 60. b8=Q {[%clk 0:00:42]} 60... Kh6 {[%clk 0:00:15.2]} 61.
Qh8# {[%clk 0:00:24.7]} 1-0

[Event "Early-Titled-Tuesday-Blitz-October-03-2023"]
[Site "Chess.com"]
[Date "2023.10.03"]
[Round "2"]
[White "mortngabriel"]
[Black "Arifarsky"]
[Result "1-0"]
[WhiteElo "2586"]
[BlackElo "2807"]
[TimeControl "180+1"]
[EndTime "8:18:06 PDT"]
[Termination "mortngabriel won on time"]

1. e4 {[%clk 0:03:00.9]} 1... c5 {[%clk 0:02:56]} 2. Nf3 {[%clk 0:03:00.8]} 2...
e6 {[%clk 0:02:55]} 3. d4 {[%clk 0:03:00.1]} 3... cxd4 {[%clk 0:02:55.9]} 4.
Nxd4 {[%clk 0:03:01]} 4... a6 {[%clk 0:02:56.5]} 5. Bd3 {[%clk 0:03:00.4]} 5...
Qc7 {[%clk 0:02:56.6]} 6. O-O {[%clk 0:03:00]} 6... Nf6 {[%clk 0:02:57]} 7. Nc3
{[%clk 0:02:59.8]} 7... Bc5 {[%clk 0:02:55.5]} 8. Nb3 {[%clk 0:02:59.4]} 8...
Ba7 {[%clk 0:02:55.7]} 9. Qe2 {[%clk 0:02:58.5]} 9... Nc6 {[%clk 0:02:55.4]} 10.
Be3 {[%clk 0:02:53.6]} 10... O-O {[%clk 0:02:41.7]} 11. Bxa7 {[%clk 0:02:52.8]}
11... Rxa7 {[%clk 0:02:42.5]} 12. Rad1 {[%clk 0:02:50.3]} 12... d6 {[%clk
0:02:31.9]} 13. f4 {[%clk 0:02:50]} 13... b5 {[%clk 0:02:30]} 14. Rf3 {[%clk
0:02:45.2]} 14... e5 {[%clk 0:02:01.9]} 15. Nd5 {[%clk 0:02:30]} 15... Qd8
{[%clk 0:01:52.9]} 16. f5 {[%clk 0:01:49.4]} 16... Re8 {[%clk 0:01:27.9]} 17. c4
{[%clk 0:01:27.7]} 17... Nxd5 {[%clk 0:00:59.4]} 18. cxd5 {[%clk 0:01:20.4]}
18... Nd4 {[%clk 0:00:42.9]} 19. Nxd4 {[%clk 0:01:20.1]} 19... exd4 {[%clk
0:00:43.8]} 20. Qf2 {[%clk 0:01:04.9]} 20... Qf6 {[%clk 0:00:38.8]} 21. Bb1
{[%clk 0:01:04.8]} 21... Rc7 {[%clk 0:00:37.8]} 22. Qxd4 {[%clk 0:01:04.8]}
22... Qxd4+ {[%clk 0:00:21.2]} 23. Rxd4 {[%clk 0:01:04.2]} 23... Rc1+ {[%clk
0:00:20]} 24. Rf1 {[%clk 0:01:04.3]} 24... Rc7 {[%clk 0:00:20.8]} 25. Kf2 {[%clk
0:01:02.4]} 25... Bd7 {[%clk 0:00:19.2]} 26. Kf3 {[%clk 0:00:49.2]} 26... f6
{[%clk 0:00:17.1]} 27. Rd2 {[%clk 0:00:48.6]} 27... Rec8 {[%clk 0:00:15.8]} 28.
g4 {[%clk 0:00:46.7]} 28... Rc1 {[%clk 0:00:14.8]} 29. Rdd1 {[%clk 0:00:46.7]}
29... R1c4 {[%clk 0:00:13.9]} 30. h4 {[%clk 0:00:45.9]} 30... h6 {[%clk
0:00:14.2]} 31. Rg1 {[%clk 0:00:45.2]} 31... Kf7 {[%clk 0:00:12.7]} 32. g5
{[%clk 0:00:45.5]} 32... hxg5 {[%clk 0:00:13.6]} 33. hxg5 {[%clk 0:00:46.4]}
33... Rh8 {[%clk 0:00:14.2]} 34. Rg3 {[%clk 0:00:43]} 34... Rh2 {[%clk
0:00:13.1]} 35. Rdg1 {[%clk 0:00:42.8]} 35... Rxb2 {[%clk 0:00:08.7]} 36. gxf6
{[%clk 0:00:36.4]} 36... Kxf6 {[%clk 0:00:09.3]} 37. Rg6+ {[%clk 0:00:37.1]}
37... Ke5 {[%clk 0:00:09]} 38. Rxg7 {[%clk 0:00:34.4]} 38... Bc8 {[%clk
0:00:05.5]} 39. Re7+ {[%clk 0:00:32.8]} 39... Kf6 {[%clk 0:00:05.1]} 40. Re8
{[%clk 0:00:27.6]} 40... Bd7 {[%clk 0:00:04.2]} 41. Rd8 {[%clk 0:00:25]} 41...
Ke7 {[%clk 0:00:04.1]} 42. Rdg8 {[%clk 0:00:24.7]} 42... Be8 {[%clk 0:00:03.8]}
43. R8g7+ {[%clk 0:00:24.4]} 43... Bf7 {[%clk 0:00:04.3]} 44. R1g6 {[%clk
0:00:19.9]} 44... Rxb1 {[%clk 0:00:03.3]} 45. Re6+ {[%clk 0:00:15.2]} 45... Kf8
{[%clk 0:00:03.3]} 46. Rh7 {[%clk 0:00:06]} 46... Bxe6 {[%clk 0:00:03.4]} 47.
dxe6 {[%clk 0:00:06.6]} 47... Rb2 {[%clk 0:00:02.2]} 48. f6 {[%clk 0:00:05.7]}
1-0

[Event "Early-Titled-Tuesday-Blitz-October-03-2023"]
[Site "Chess.com"]
[Date "2023.10.03"]
[Round "2"]
[White "vedantgoswami"]
[Black "Markov_Mikhail"]
[Result "0-1"]
[WhiteElo "2389"]
[BlackElo "2714"]
[TimeControl "180+1"]
[EndTime "8:18:06 PDT"]
[Termination "Markov_Mikhail won by checkmate"]

1. c3 {[%clk 0:02:57.5]} 1... d5 {[%clk 0:02:57.6]} 2. d4 {[%clk 0:02:56.9]}
2... Nf6 {[%clk 0:02:55.6]} 3. Nf3 {[%clk 0:02:56.7]} 3... e6 {[%clk 0:02:55.6]}
4. Bf4 {[%clk 0:02:55.6]} 4... c5 {[%clk 0:02:56.1]} 5. Nbd2 {[%clk 0:02:55.1]}
5... Bd6 {[%clk 0:02:55.9]} 6. e3 {[%clk 0:02:53]} 6... Qc7 {[%clk 0:02:54.2]}
7. Bb5+ {[%clk 0:02:50.3]} 7... Nfd7 {[%clk 0:02:49.6]} 8. Bg3 {[%clk
0:02:43.9]} 8... O-O {[%clk 0:02:49.3]} 9. Bd3 {[%clk 0:02:34.9]} 9... e5 {[%clk
0:02:47.8]} 10. dxe5 {[%clk 0:02:26.8]} 10... Nxe5 {[%clk 0:02:41.8]} 11. Nxe5
{[%clk 0:02:25.8]} 11... Bxe5 {[%clk 0:02:41.8]} 12. Bxh7+ {[%clk 0:02:22.6]}
12... Kxh7 {[%clk 0:02:42.7]} 13. Qh5+ {[%clk 0:02:21.6]} 13... Kg8 {[%clk
0:02:43.4]} 14. Qxe5 {[%clk 0:02:19.2]} 14... Qb6 {[%clk 0:02:41.4]} 15. b3
{[%clk 0:02:15.1]} 15... Nc6 {[%clk 0:02:36.5]} 16. Qh5 {[%clk 0:02:13.3]} 16...
d4 {[%clk 0:02:31.8]} 17. cxd4 {[%clk 0:01:56.2]} 17... cxd4 {[%clk 0:02:32.7]}
18. O-O {[%clk 0:01:43.2]} 18... dxe3 {[%clk 0:02:32.6]} 19. Nf3 {[%clk
0:01:43]} 19... exf2+ {[%clk 0:02:24.5]} 20. Bxf2 {[%clk 0:01:42.4]} 20... Qa5
{[%clk 0:02:25.1]} 21. Qxa5 {[%clk 0:01:38]} 21... Nxa5 {[%clk 0:02:24.5]} 22.
Rac1 {[%clk 0:01:37.2]} 22... Nc6 {[%clk 0:02:22.4]} 23. Nd4 {[%clk 0:01:35.9]}
23... Nxd4 {[%clk 0:02:22]} 24. Bxd4 {[%clk 0:01:35.6]} 24... Be6 {[%clk
0:02:22.3]} 25. Rc7 {[%clk 0:01:34.4]} 25... b6 {[%clk 0:02:19.3]} 26. Rf3
{[%clk 0:01:13.8]} 26... Rfd8 {[%clk 0:02:17.9]} 27. Bc3 {[%clk 0:01:13.5]}
27... Rdc8 {[%clk 0:01:51.2]} 28. Rxc8+ {[%clk 0:01:09.1]} 28... Rxc8 {[%clk
0:01:52.1]} 29. Rg3 {[%clk 0:01:09.5]} 29... g6 {[%clk 0:01:52.2]} 30. h4 {[%clk
0:01:04]} 30... Rc5 {[%clk 0:01:47.8]} 31. Kh2 {[%clk 0:00:55.7]} 31... Kh7
{[%clk 0:01:46.9]} 32. Bf6 {[%clk 0:00:54]} 32... Rf5 {[%clk 0:01:41.5]} 33. Bd4
{[%clk 0:00:48.8]} 33... Rf4 {[%clk 0:01:39.9]} 34. Be3 {[%clk 0:00:37.8]} 34...
Rxh4+ {[%clk 0:01:39.3]} 35. Kg1 {[%clk 0:00:37.8]} 35... Re4 {[%clk 0:01:39.5]}
36. Kf2 {[%clk 0:00:37.2]} 36... f6 {[%clk 0:01:37.3]} 37. Rf3 {[%clk
0:00:35.7]} 37... Bf5 {[%clk 0:01:31.7]} 38. Rf4 {[%clk 0:00:35.2]} 38... Re6
{[%clk 0:01:27.2]} 39. Ra4 {[%clk 0:00:34.7]} 39... Re7 {[%clk 0:01:15.8]} 40.
g4 {[%clk 0:00:34.2]} 40... Be4 {[%clk 0:01:11.9]} 41. g5 {[%clk 0:00:32.6]}
41... f5 {[%clk 0:00:45.2]} 42. Rd4 {[%clk 0:00:30.7]} 42... Rc7 {[%clk
0:00:44.4]} 43. Rd2 {[%clk 0:00:28.1]} 43... Kg8 {[%clk 0:00:39.7]} 44. Kg3
{[%clk 0:00:26.7]} 44... Kf7 {[%clk 0:00:38.6]} 45. Rd6 {[%clk 0:00:24.6]} 45...
Rc2 {[%clk 0:00:32.7]} 46. Rf6+ {[%clk 0:00:23.5]} 46... Ke7 {[%clk 0:00:32.2]}
47. Bf4 {[%clk 0:00:18.1]} 47... Rg2+ {[%clk 0:00:19.5]} 48. Kh3 {[%clk
0:00:17.8]} 48... Rf2 {[%clk 0:00:20.1]} 49. Be5 {[%clk 0:00:16]} 49... Rxa2
{[%clk 0:00:18]} 50. Rxg6 {[%clk 0:00:15.3]} 50... Re2 {[%clk 0:00:18.7]} 51.
Bf6+ {[%clk 0:00:12.3]} 51... Ke6 {[%clk 0:00:16.3]} 52. Rg7 {[%clk 0:00:11.4]}
52... f4 {[%clk 0:00:16.8]} 53. Rxa7 {[%clk 0:00:10.2]} 53... Bf5+ {[%clk
0:00:16.4]} 54. Kh4 {[%clk 0:00:07.9]} 54... Rh2# {[%clk 0:00:17.3]} 0-1

[Event "Early-Titled-Tuesday-Blitz-October-03-2023"]
[Site "Chess.com"]
[Date "2023.10.03"]
[Round "2"]
[White "ArmanGhevondyanchess"]
[Black "MightyGMpretender"]
[Result "1-0"]
[WhiteElo "2580"]
[BlackElo "2805"]
[TimeControl "180+1"]
[EndTime "8:18:10 PDT"]
[Termination "ArmanGhevondyanchess won by resignation"]

1. Nf3 {[%clk 0:03:00.9]} 1... Nf6 {[%clk 0:02:58.1]} 2. g3 {[%clk 0:03:00.8]}
2... d5 {[%clk 0:02:58.7]} 3. Bg2 {[%clk 0:03:00.8]} 3... e6 {[%clk 0:02:58.6]}
4. O-O {[%clk 0:03:01.5]} 4... Be7 {[%clk 0:02:58.9]} 5. d4 {[%clk 0:03:02.2]}
5... O-O {[%clk 0:02:59]} 6. c4 {[%clk 0:03:02.8]} 6... c6 {[%clk 0:02:53.6]} 7.
Nc3 {[%clk 0:03:02.7]} 7... b6 {[%clk 0:02:53.8]} 8. b3 {[%clk 0:03:02.4]} 8...
Ba6 {[%clk 0:02:52.7]} 9. Bb2 {[%clk 0:03:03.1]} 9... Nbd7 {[%clk 0:02:46.4]}
10. Ne5 {[%clk 0:02:59.2]} 10... Nxe5 {[%clk 0:02:45.4]} 11. dxe5 {[%clk
0:02:59.5]} 11... Nd7 {[%clk 0:02:45.7]} 12. cxd5 {[%clk 0:02:57.5]} 12... cxd5
{[%clk 0:02:44.9]} 13. f4 {[%clk 0:02:57.9]} 13... Rc8 {[%clk 0:02:32.7]} 14.
Kh1 {[%clk 0:02:51.6]} 14... Bb4 {[%clk 0:02:26.6]} 15. Rc1 {[%clk 0:02:49.4]}
15... Nc5 {[%clk 0:02:26.6]} 16. a3 {[%clk 0:02:09.5]} 16... Bxc3 {[%clk
0:02:26.2]} 17. Bxc3 {[%clk 0:02:07.2]} 17... Ne4 {[%clk 0:02:25.4]} 18. Bxe4
{[%clk 0:02:02.3]} 18... dxe4 {[%clk 0:02:26.3]} 19. Bb4 {[%clk 0:01:52.9]}
19... Rxc1 {[%clk 0:01:56.9]} 20. Qxc1 {[%clk 0:01:51.2]} 20... Bxe2 {[%clk
0:01:57.4]} 21. Bxf8 {[%clk 0:01:38.2]} 21... Bxf1 {[%clk 0:01:53.1]} 22. Bd6
{[%clk 0:01:30.2]} 22... Bd3 {[%clk 0:01:42.4]} 23. Qc7 {[%clk 0:01:29.6]} 23...
Qxc7 {[%clk 0:01:36.3]} 24. Bxc7 {[%clk 0:01:29.4]} 24... e3 {[%clk 0:01:36]}
25. Kg2 {[%clk 0:01:28.9]} 25... f5 {[%clk 0:01:27]} 26. Bb8 {[%clk 0:01:26.7]}
26... a6 {[%clk 0:01:23]} 27. Ba7 {[%clk 0:01:26.3]} 27... e2 {[%clk 0:01:23.2]}
28. Kf2 {[%clk 0:01:25.6]} 28... b5 {[%clk 0:01:23.4]} 29. a4 {[%clk 0:01:24.3]}
29... bxa4 {[%clk 0:01:21.2]} 30. bxa4 {[%clk 0:01:24.5]} 30... Kf7 {[%clk
0:01:21.9]} 31. a5 {[%clk 0:01:22.5]} 31... Kg6 {[%clk 0:01:21.2]} 32. Bc5
{[%clk 0:01:14.4]} 32... Kh5 {[%clk 0:01:21.2]} 33. h3 {[%clk 0:01:14.6]} 33...
g5 {[%clk 0:01:19.7]} 34. Be3 {[%clk 0:01:11.7]} 34... h6 {[%clk 0:01:17.6]} 35.
Bd2 {[%clk 0:01:09.8]} 35... Bb5 {[%clk 0:01:16.3]} 36. Be3 {[%clk 0:01:02]}
36... Kg6 {[%clk 0:01:10.3]} 37. Bd2 {[%clk 0:01:01.8]} 37... Bc4 {[%clk
0:01:09.6]} 38. Be3 {[%clk 0:01:01.9]} 38... Bd3 {[%clk 0:01:10.3]} 39. Bd2
{[%clk 0:01:02.3]} 39... Bb5 {[%clk 0:01:11.2]} 40. Be3 {[%clk 0:01:02.7]} 40...
gxf4 {[%clk 0:00:56.9]} 41. Bxf4 {[%clk 0:00:58.4]} 41... h5 {[%clk 0:00:55.9]}
42. Bd2 {[%clk 0:00:58]} 42... Kf7 {[%clk 0:00:40]} 43. Ke3 {[%clk 0:00:57.7]}
43... Ke8 {[%clk 0:00:35.6]} 44. Kf4 {[%clk 0:00:56.4]} 44... Bc6 {[%clk
0:00:35]} 45. Ke3 {[%clk 0:00:54.8]} 45... Bb5 {[%clk 0:00:34.3]} 46. Kf4 {[%clk
0:00:55.1]} 46... Kd7 {[%clk 0:00:13.4]} 47. Kg5 {[%clk 0:00:52.9]} 47... Kc6
{[%clk 0:00:14.1]} 48. Kxh5 {[%clk 0:00:53.5]} 48... Kd5 {[%clk 0:00:14.8]} 49.
Kg5 {[%clk 0:00:39.9]} 49... Kxe5 {[%clk 0:00:14.7]} 50. h4 {[%clk 0:00:40.1]}
50... Bd3 {[%clk 0:00:14.1]} 51. h5 {[%clk 0:00:37.3]} 51... f4 {[%clk 0:00:11]}
52. gxf4+ {[%clk 0:00:36]} 52... Ke4 {[%clk 0:00:10.5]} 53. f5 {[%clk
0:00:25.2]} 53... Ke5 {[%clk 0:00:01.6]} 54. f6 {[%clk 0:00:24.3]} 54... Kd6
{[%clk 0:00:02.3]} 55. Bb4+ {[%clk 0:00:18.7]} 55... Kd7 {[%clk 0:00:02.9]} 56.
Kh6 {[%clk 0:00:15.9]} 56... e5 {[%clk 0:00:01.6]} 57. Kg7 {[%clk 0:00:16.1]}
57... e4 {[%clk 0:00:01.7]} 58. f7 {[%clk 0:00:15.7]} 1-0

[Event "Early-Titled-Tuesday-Blitz-October-03-2023"]
[Site "Chess.com"]
[Date "2023.10.03"]
[Round "2"]
[White "Mikhail_Golubev"]
[Black "Vaathi_Coming"]
[Result "0-1"]
[WhiteElo "2596"]
[BlackElo "2864"]
[TimeControl "180+1"]
[EndTime "8:18:12 PDT"]
[Termination "Vaathi_Coming won on time"]

1. e4 {[%clk 0:03:00.9]} 1... e6 {[%clk 0:02:56.5]} 2. d4 {[%clk 0:02:58.9]}
2... d5 {[%clk 0:02:56.6]} 3. Bd3 {[%clk 0:02:59.5]} 3... dxe4 {[%clk 0:02:52]}
4. Bxe4 {[%clk 0:03:00.4]} 4... Nf6 {[%clk 0:02:52.3]} 5. Bf3 {[%clk 0:02:59.5]}
5... c5 {[%clk 0:02:50.9]} 6. Be3 {[%clk 0:02:53]} 6... Nbd7 {[%clk 0:02:21]} 7.
Ne2 {[%clk 0:02:47.3]} 7... cxd4 {[%clk 0:02:20]} 8. Nxd4 {[%clk 0:02:44.8]}
8... Ne5 {[%clk 0:02:19.1]} 9. Nc3 {[%clk 0:02:44.7]} 9... Bb4 {[%clk
0:02:16.3]} 10. O-O {[%clk 0:02:28.7]} 10... Bxc3 {[%clk 0:02:16.6]} 11. bxc3
{[%clk 0:02:28.4]} 11... O-O {[%clk 0:02:17.3]} 12. Be2 {[%clk 0:02:21.6]} 12...
Bd7 {[%clk 0:02:12.9]} 13. Rb1 {[%clk 0:02:11]} 13... Qc7 {[%clk 0:01:59.7]} 14.
Bf4 {[%clk 0:02:03.4]} 14... Nd5 {[%clk 0:01:58.6]} 15. Qd2 {[%clk 0:01:25]}
15... Nxf4 {[%clk 0:01:39.6]} 16. Qxf4 {[%clk 0:01:25.4]} 16... Rac8 {[%clk
0:01:39]} 17. Rb3 {[%clk 0:01:06.2]} 17... b6 {[%clk 0:01:31.4]} 18. Re1 {[%clk
0:01:04.5]} 18... Ng6 {[%clk 0:01:29.3]} 19. Qe3 {[%clk 0:00:51.9]} 19... Qf4
{[%clk 0:01:19.7]} 20. Ba6 {[%clk 0:00:47.2]} 20... Rc5 {[%clk 0:01:19.4]} 21.
g3 {[%clk 0:00:34.1]} 21... Qxe3 {[%clk 0:01:17.9]} 22. Rxe3 {[%clk 0:00:35]}
22... e5 {[%clk 0:01:17.1]} 23. Nb5 {[%clk 0:00:26.5]} 23... Be6 {[%clk
0:01:02.3]} 24. Rb4 {[%clk 0:00:22.8]} 24... Ne7 {[%clk 0:00:59.5]} 25. Re1
{[%clk 0:00:16.3]} 25... Nd5 {[%clk 0:00:36.4]} 26. Rb2 {[%clk 0:00:16.3]} 26...
Nxc3 {[%clk 0:00:35.5]} 27. Nxc3 {[%clk 0:00:15.8]} 27... Rxc3 {[%clk
0:00:36.4]} 28. Rxe5 {[%clk 0:00:15]} 28... Rd8 {[%clk 0:00:36.5]} 29. Bd3
{[%clk 0:00:13.6]} 29... g6 {[%clk 0:00:34.1]} 30. Re1 {[%clk 0:00:10.9]} 30...
Ra3 {[%clk 0:00:32.2]} 31. Kf1 {[%clk 0:00:07.6]} 31... Kg7 {[%clk 0:00:31]} 32.
Ke2 {[%clk 0:00:06.4]} 32... Rd7 {[%clk 0:00:28.5]} 33. Ra1 {[%clk 0:00:05]}
33... Kf6 {[%clk 0:00:25.4]} 34. f4 {[%clk 0:00:03.1]} 34... h5 {[%clk
0:00:21.2]} 35. Re1 {[%clk 0:00:02.6]} 35... Rxa2 {[%clk 0:00:19.4]} 36. Rxa2
{[%clk 0:00:02.2]} 36... Bxa2 {[%clk 0:00:20.3]} 37. Ra1 {[%clk 0:00:02.3]}
37... Be6 {[%clk 0:00:20.3]} 38. Ra3 {[%clk 0:00:03]} 38... Rc7 {[%clk
0:00:19.9]} 39. Ke3 {[%clk 0:00:03.1]} 39... a5 {[%clk 0:00:18.7]} 40. Kd4
{[%clk 0:00:03]} 40... Rd7+ {[%clk 0:00:12.7]} 41. Ke3 {[%clk 0:00:02.7]} 41...
Rd6 {[%clk 0:00:12.5]} 42. c4 {[%clk 0:00:02.8]} 42... Bd7 {[%clk 0:00:06.9]}
43. Ra1 {[%clk 0:00:02.6]} 43... Bf5 {[%clk 0:00:03.9]} 44. Bxf5 {[%clk
0:00:01.8]} 44... Kxf5 {[%clk 0:00:04.8]} 45. c5 {[%clk 0:00:02]} 45... bxc5
{[%clk 0:00:04]} 46. Rxa5 {[%clk 0:00:02.5]} 46... Rd5 {[%clk 0:00:04.2]} 47.
Rb5 {[%clk 0:00:02.2]} 47... Ke6 {[%clk 0:00:03.9]} 48. Ke4 {[%clk 0:00:02]}
48... Rd4+ {[%clk 0:00:04.1]} 49. Ke3 {[%clk 0:00:01.9]} 49... Kd5 {[%clk
0:00:04.5]} 50. Rb7 {[%clk 0:00:02.1]} 50... f5 {[%clk 0:00:04.5]} 51. Rg7
{[%clk 0:00:01.3]} 51... Re4+ {[%clk 0:00:03.7]} 0-1

[Event "Early-Titled-Tuesday-Blitz-October-03-2023"]
[Site "Chess.com"]
[Date "2023.10.03"]
[Round "2"]
[White "Ermito2020"]
[Black "the_chess_child"]
[Result "0-1"]
[WhiteElo "2589"]
[BlackElo "2855"]
[TimeControl "180+1"]
[EndTime "8:18:12 PDT"]
[Termination "the_chess_child won on time"]

1. e4 {[%clk 0:03:00.9]} 1... c5 {[%clk 0:03:00.1]} 2. Nf3 {[%clk 0:03:00.6]}
2... d6 {[%clk 0:02:59.5]} 3. d4 {[%clk 0:03:00.8]} 3... cxd4 {[%clk 0:03:00.4]}
4. Nxd4 {[%clk 0:03:01.7]} 4... Nf6 {[%clk 0:03:01]} 5. Nc3 {[%clk 0:03:02]}
5... a6 {[%clk 0:03:01.4]} 6. Bg5 {[%clk 0:03:02.3]} 6... e6 {[%clk 0:03:00.6]}
7. Qf3 {[%clk 0:03:02.7]} 7... Nbd7 {[%clk 0:02:55.7]} 8. O-O-O {[%clk
0:03:03.2]} 8... Qc7 {[%clk 0:02:54.4]} 9. Qg3 {[%clk 0:03:01.2]} 9... b5 {[%clk
0:02:52.6]} 10. Bxb5 {[%clk 0:02:49.2]} 10... axb5 {[%clk 0:02:52.7]} 11. Ndxb5
{[%clk 0:02:50.1]} 11... Qb7 {[%clk 0:02:51]} 12. Rxd6 {[%clk 0:02:03]} 12...
Rxa2 {[%clk 0:02:00]} 13. Nc7+ {[%clk 0:01:04.1]} 13... Kd8 {[%clk 0:01:33.2]}
14. Nxe6+ {[%clk 0:01:02.9]} 14... fxe6 {[%clk 0:01:32.3]} 15. Nxa2 {[%clk
0:01:03.5]} 15... Bxd6 {[%clk 0:01:22.1]} 16. Qxd6 {[%clk 0:01:04.4]} 16... Qa6
{[%clk 0:01:21.5]} 17. Qxa6 {[%clk 0:00:54.4]} 17... Bxa6 {[%clk 0:01:22.4]} 18.
Nb4 {[%clk 0:00:54.3]} 18... Bb7 {[%clk 0:01:20.4]} 19. f3 {[%clk 0:00:54.3]}
19... Ke7 {[%clk 0:01:17.2]} 20. Rd1 {[%clk 0:00:52.7]} 20... h6 {[%clk
0:01:13.6]} 21. Be3 {[%clk 0:00:49.2]} 21... Rc8 {[%clk 0:01:12.4]} 22. b3
{[%clk 0:00:45.5]} 22... g5 {[%clk 0:01:10.3]} 23. Kb2 {[%clk 0:00:44.3]} 23...
Ne5 {[%clk 0:01:06.6]} 24. Ra1 {[%clk 0:00:37.3]} 24... Ra8 {[%clk 0:00:58.9]}
25. Bc5+ {[%clk 0:00:36.4]} 25... Kf7 {[%clk 0:00:58.8]} 26. Rd1 {[%clk
0:00:36.1]} 26... h5 {[%clk 0:00:53.4]} 27. Be3 {[%clk 0:00:33.6]} 27... g4
{[%clk 0:00:51.1]} 28. f4 {[%clk 0:00:29.1]} 28... Nc6 {[%clk 0:00:45.5]} 29.
Nxc6 {[%clk 0:00:15.4]} 29... Bxc6 {[%clk 0:00:46.4]} 30. e5 {[%clk 0:00:16.3]}
30... Nd5 {[%clk 0:00:46.5]} 31. Bd2 {[%clk 0:00:16]} 31... h4 {[%clk
0:00:41.8]} 32. g3 {[%clk 0:00:15.1]} 32... hxg3 {[%clk 0:00:41.8]} 33. hxg3
{[%clk 0:00:16]} 33... Ne7 {[%clk 0:00:42.1]} 34. c4 {[%clk 0:00:16.7]} 34...
Nf5 {[%clk 0:00:42.1]} 35. Be1 {[%clk 0:00:15.9]} 35... Rh8 {[%clk 0:00:42]} 36.
b4 {[%clk 0:00:14.2]} 36... Rh2+ {[%clk 0:00:41.5]} 37. Kc3 {[%clk 0:00:14.2]}
37... Rg2 {[%clk 0:00:35.9]} 38. b5 {[%clk 0:00:14.3]} 38... Be4 {[%clk
0:00:36]} 39. c5 {[%clk 0:00:11.6]} 39... Rc2+ {[%clk 0:00:21.7]} 40. Kb4 {[%clk
0:00:11.1]} 40... Ne3 {[%clk 0:00:22]} 41. Rd7+ {[%clk 0:00:08.5]} 41... Ke8
{[%clk 0:00:22]} 42. c6 {[%clk 0:00:09]} 42... Nd5+ {[%clk 0:00:21.7]} 43. Kb3
{[%clk 0:00:05.6]} 43... Rc5 {[%clk 0:00:21.6]} 44. Rb7 {[%clk 0:00:05.9]} 44...
Bd3 {[%clk 0:00:21.1]} 45. Ka4 {[%clk 0:00:04.9]} 45... Rc1 {[%clk 0:00:19.2]}
46. Rb8+ {[%clk 0:00:05]} 46... Kf7 {[%clk 0:00:19.1]} 47. Rb7+ {[%clk
0:00:04.3]} 47... Kg6 {[%clk 0:00:19.4]} 48. Bd2 {[%clk 0:00:03]} 48... Rc2
{[%clk 0:00:19.7]} 49. Bb4 {[%clk 0:00:02]} 49... Rc4 {[%clk 0:00:18.4]} 0-1